bitfinex/quotes_SOLUSD_20250514
["timestamp","ask_amount","ask_price","bid_price","bid_amount"]
[1747213747575,33.62,178.14,178.06,14.00244079]
[1747213747875,33.62,178.14,178.12,14.00244079]
[1747213747876,39.23356236,178.14,178.12,14.00244079]
[1747213748045,39.23356236,178.14,178.06,32.3281]
[1747213748246,39.23356236,178.14,178.11,14.00244079]
[1747213748483,39.23356236,178.14,178.06,32.3281]
[1747213748650,33.62,178.14,178.13,14.00244079]
[1747213749054,5.61230216,178.18,178.13,14.00244079]
[1747213749250,5.61230216,178.18,178.12,26.0]
[1747213749564,5.61230216,178.18,178.16,14.00244079]
[1747213750155,33.64549836,178.18,178.13,14.00244079]
[1747213750356,5.61293219,178.16,178.12,14.00244079]
[1747213750557,19.64526267,178.16,178.12,14.00244079]
[1747213751252,19.64526267,178.16,178.13,14.00244079]
[1747213751453,5.61293219,178.16,178.15,14.00244079]
[1747213752367,5.61230216,178.18,178.15,14.00244079]
[1747213752568,5.61230216,178.18,178.17,14.00244079]
[1747213752769,5.61230216,178.18,178.11,40.00244079]
[1747213752957,5.61230216,178.18,178.17,14.00244079]
[1747213753575,5.61202514,178.19,178.17,14.00244079]
[1747213753778,33.62,178.2,178.18,14.00244079]
[1747213753997,33.62,178.2,178.19,14.00244079]
[1747213754284,5.61009817,178.25,178.19,14.00244079]
[1747213754467,5.61009817,178.25,178.17,6.5019]
[1747213754468,14.02524544,178.25,178.17,6.5019]
[1747213754668,14.02524544,178.25,178.21,14.00244079]
[1747213755060,14.02524544,178.25,178.22,14.00244079]
[1747213755377,14.02524544,178.25,178.23,14.00244079]
[1747213755586,14.02524544,178.25,178.24,14.00244079]
[1747213756157,5.60978346,178.26,178.24,14.00244079]
[1747213756359,5.60978346,178.26,178.25,14.00244079]
[1747213757557,39.04953188,178.27,178.25,14.00244079]
[1747213757763,5.60953188,178.27,178.26,14.00244079]
[1747213758088,5.60911752,178.29,178.26,14.00244079]
[1747213758256,5.60911752,178.29,178.28,14.00244079]
[1747213758979,5.60789591,178.32,178.28,15.65204079]
[1747213759178,5.60789591,178.32,178.31,14.00244079]
[1747213761087,19.6276357,178.32,178.29,14.00244079]
[1747213761464,5.60789591,178.32,178.31,14.00244079]
[1747213761777,19.6276357,178.32,178.29,14.00244079]
[1747213762885,14.01973979,178.32,178.24,26.0]
[1747213763059,14.01973979,178.32,178.22,7.5923]
[1747213763060,14.00244079,178.3,178.25,14.00244079]
[1747213763260,14.00244079,178.28,178.22,7.5923]
[1747213763467,33.42,178.3,178.18,6.0166]
[1747213763468,14.00244079,178.26,178.18,6.0166]
[1747213763667,33.42,178.3,178.18,6.0166]
[1747213763668,14.00244079,178.25,178.2,14.00244079]
[1747213763867,14.00244079,178.27,178.22,14.00244079]
[1747213764160,33.42,178.3,178.23,14.00244079]
[1747213764362,33.42,178.3,178.26,14.00244079]
[1747213764563,33.42,178.3,178.21,26.0]
[1747213764794,14.00244079,178.28,178.23,14.00244079]
[1747213765094,14.02367195,178.27,178.24,14.00244079]
[1747213765269,14.02367195,178.27,178.25,14.00244079]
[1747213765468,5.60915413,178.28,178.26,14.00244079]
[1747213765866,5.60915413,178.28,178.27,14.00244079]
[1747213766599,47.42244079,178.32,178.27,14.00244079]
[1747213766600,5.60789591,178.32,178.27,14.00244079]
[1747213766776,5.60789591,178.32,178.3,14.00244079]
[1747213767091,14.01935404,178.33,178.31,14.00244079]
[1747213767290,14.01935404,178.33,178.31,20.60861984]
[1747213767598,14.01935404,178.33,178.3,20.60861984]
[1747213768489,14.01935404,178.33,178.26,0.28432314]
[1747213768785,14.01935404,178.33,178.29,20.60861984]
[1747213768986,19.62873647,178.31,178.27,26.0]
[1747213769172,20.60861984,178.3,178.25,20.60861984]
[1747213769489,20.60861984,178.3,178.23,26.0]
[1747213769793,20.60861984,178.3,178.25,20.60861984]
[1747213770775,19.62873647,178.31,178.27,20.60861984]
[1747213770959,40.23735631,178.31,178.22,0.28432314]
[1747213771165,20.60861984,178.29,178.24,20.60861984]
[1747213771589,20.60861984,178.3,178.25,20.60861984]
[1747213771797,20.60861984,178.3,178.26,20.60861984]
[1747213772175,20.60861984,178.27,178.18,6.0166]
[1747213772381,20.60861984,178.25,178.2,20.60861984]
[1747213772566,20.60861984,178.23,178.14,6.5671]
[1747213772772,20.60861984,178.22,178.17,20.60861984]
[1747213773093,19.63975084,178.21,178.17,46.60861984]
[1747213773297,19.63975084,178.21,178.19,20.60861984]
[1747213773466,5.61135738,178.21,178.19,20.60861984]
[1747213773666,5.61135738,178.21,178.2,20.60861984]
[1747213774100,5.61135738,178.21,178.19,20.60861984]
[1747213774395,40.24837068,178.21,178.17,26.0]
[1747213774587,19.63975084,178.21,178.17,46.60861984]
[1747213774983,19.63975084,178.21,178.18,20.60861984]
[1747213775288,5.61104253,178.22,178.2,20.60861984]
[1747213775591,20.60861984,178.21,178.15,20.60861984]
[1747213775895,68.30248134,178.22,178.17,20.60861984]
[1747213776078,40.24726869,178.22,178.17,20.60861984]
[1747213776891,40.24726869,178.22,178.14,26.0]
[1747213776892,19.63864885,178.22,178.18,20.60861984]
[1747213777090,5.61072771,178.23,178.2,20.60861984]
[1747213777974,5.61072771,178.23,178.15,0.14216157]
[1747213777975,19.63754698,178.23,178.14,26.14216157]
[1747213778198,40.24616682,178.23,178.18,20.60861984]
[1747213778379,20.60861984,178.22,178.17,20.60861984]
[1747213778575,19.63754698,178.23,178.12,1.5989]
[1747213778576,20.60861984,178.21,178.12,1.5989]
[1747213778781,20.60861984,178.2,178.15,20.60861984]
[1747213778982,20.60861984,178.19,178.12,1.5989]
[1747213779294,5.61261716,178.17,178.13,46.60861984]
[1747213779502,19.64416006,178.17,178.14,20.60861984]
[1747213780395,19.64416006,178.17,178.13,26.0]
[1747213780396,5.61261716,178.17,178.15,20.60861984]
[1747213780605,5.61261716,178.17,178.16,20.60861984]
[1747213780897,20.60861984,178.29,178.16,20.60861984]
[1747213781076,14.02624102,178.24,178.21,20.60861984]
[1747213781996,14.02624102,178.24,178.22,20.60861984]
[1747213782494,14.02624102,178.24,178.21,20.60861984]
[1747213782696,20.60861984,178.23,178.18,20.60861984]
[1747213782898,20.60861984,178.22,178.17,20.60861984]
[1747213783198,19.63864885,178.22,178.18,20.60861984]
[1747213783704,19.63864885,178.22,178.2,20.60861984]
[1747213783895,19.63864885,178.22,178.19,20.60861984]
[1747213784205,19.63864885,178.22,178.18,20.60861984]
[1747213784383,19.63864885,178.22,178.19,20.60861984]
[1747213785089,40.24726869,178.22,178.17,20.60861984]
[1747213785599,20.60861984,178.2,178.15,20.60861984]
[1747213786295,20.60861984,178.19,178.14,20.60861984]
[1747213786478,20.60861984,178.19,178.05,0.6]
[1747213786479,20.60861984,178.16,178.07,1.5117]
[1747213786678,53.78861984,178.15,178.1,20.60861984]
[1747213786888,33.18,178.15,178.12,20.60861984]
[1747213787092,33.18,178.15,178.14,20.60861984]
[1747213787398,38.79324726,178.15,178.14,13.97654669]
[1747213787996,13.97654669,178.22,178.14,13.97654669]
[1747213788193,47.15654669,178.21,178.16,13.97654669]
[1747213788501,33.18,178.21,178.17,13.97654669]
[1747213788673,33.18,178.21,178.18,13.97654669]
[1747213789104,52.81975084,178.21,178.19,13.97654669]
[1747213789906,5.61072771,178.23,178.2,13.97654669]
[1747213790200,5.61048463,178.24,178.22,13.97654669]
[1747213790400,38.79018275,178.25,178.23,13.97654669]
[1747213790603,33.18,178.25,178.24,13.97654669]
[1747213791494,5.60789591,178.32,178.27,26.0]
[1747213791682,5.60789591,178.32,178.31,13.97654669]
[1747213793201,5.60726701,178.34,178.31,13.97654669]
[1747213793407,5.60726701,178.34,178.33,20.60432855]
[1747213793790,5.60726701,178.34,178.27,27.83032314]
[1747213793791,5.60726701,178.34,178.28,0.28432314]
[1747213793983,5.60726701,178.34,178.32,20.60432855]
[1747213794699,5.60726701,178.34,178.33,20.60432855]
[1747213795791,33.18,178.35,178.33,20.60432855]
[1747213795987,33.18,178.35,178.34,20.60432855]
[1747213796307,210.1,178.38,178.34,20.88865169]
[1747213796480,5.60475283,178.42,178.37,20.60432855]
[1747213796797,5.60475283,178.42,178.4,20.60432855]
[1747213796977,5.60475283,178.42,178.41,20.60432855]
[1747213798284,5.60475283,178.42,178.4,20.60432855]
[1747213798486,19.6166349,178.42,178.39,20.60432855]
[1747213798710,19.6166349,178.42,178.4,20.60432855]
[1747213799225,19.6166349,178.42,178.38,20.60432855]
[1747213799508,40.22096345,178.42,178.37,20.60432855]
[1747213800003,19.6166349,178.42,178.37,20.60432855]
[1747213800204,19.6166349,178.42,178.38,20.60432855]
[1747213800781,5.60475283,178.42,178.4,20.60432855]
[1747213801006,5.60475283,178.42,178.41,20.60432855]
[1747213801207,5.60412463,178.44,178.41,20.60432855]
[1747213801377,5.60412463,178.44,178.43,20.60432855]
[1747213802519,5.60412463,178.44,178.41,26.0]
[1747213802810,5.60412463,178.44,178.43,20.60432855]
[1747213803387,38.76383395,178.45,178.43,20.60432855]
[1747213803583,38.76383395,178.45,178.44,20.60432855]
[1747213803784,38.76383395,178.45,178.42,7.7179]
[1747213803988,38.76383395,178.45,178.44,20.60432855]
[1747213804586,33.16,178.45,178.44,20.60432855]
[1747213804805,5.60255476,178.49,178.47,26.0]
[1747213805006,5.60255476,178.49,178.48,20.60432855]
[1747213805205,5.60098577,178.54,178.48,20.60432855]
[1747213805387,5.60098577,178.54,178.47,46.60432855]
[1747213805388,19.6034502,178.54,178.52,20.60432855]
[1747213805805,19.6034502,178.54,178.51,20.60432855]
[1747213806115,20.60432855,178.52,178.42,7.7179]
[1747213806328,19.6034502,178.54,178.45,20.60432855]
[1747213806530,20.60432855,178.49,178.44,20.60432855]
[1747213806839,20.60432855,178.52,178.47,20.60432855]
[1747213807216,19.6034502,178.54,178.51,20.60432855]
[1747213807536,14.00246443,178.54,178.52,20.60432855]
[1747213807721,14.00246443,178.54,178.51,20.60432855]
[1747213808334,14.00246443,178.54,178.45,26.0]
[1747213808640,14.00246443,178.54,178.52,20.60432855]
[1747213808853,14.00246443,178.54,178.51,20.60432855]
[1747213809607,34.60679298,178.54,178.49,20.60432855]
[1747213809807,14.00246443,178.54,178.5,20.60432855]
[1747213810238,14.00246443,178.54,178.51,20.60432855]
[1747213811038,14.00246443,178.54,178.5,20.60432855]
[1747213811414,19.6034502,178.54,178.5,20.60432855]
[1747213811748,47.60837906,178.54,178.47,20.60432855]
[1747213811902,20.60432855,178.53,178.48,20.60432855]
[1747213812102,68.21270761,178.54,178.49,20.60432855]
[1747213812530,20.60432855,178.53,178.48,20.60432855]
[1747213813133,20.60432855,178.53,178.45,26.0]
[1747213813331,20.60432855,178.52,178.47,20.60432855]
[1747213813517,20.60432855,178.5,178.45,26.0]
[1747213813721,20.60432855,178.47,178.42,20.60432855]
[1747213813957,20.60432855,178.49,178.44,20.60432855]
[1747213814156,47.61638002,178.51,178.41,26.0]
[1747213814460,19.60674471,178.51,178.42,0.28432314]
[1747213814653,19.60674471,178.51,178.49,20.60432855]
[1747213815148,5.60192706,178.51,178.5,20.60432855]
[1747213815328,5.60192706,178.51,178.5,13.91784392]
[1747213815536,14.00290122,178.54,178.5,13.91784392]
[1747213815845,14.00290122,178.54,178.51,13.91784392]
[1747213816822,14.00290122,178.54,178.53,13.91784392]
[1747213817023,5.60067208,178.55,178.53,13.91784392]
[1747213817327,5.60067208,178.55,178.54,13.91784392]
[1747213818928,5.60067208,178.55,178.49,26.0]
[1747213818929,19.60235228,178.55,178.49,26.0]
[1747213819131,19.60235228,178.55,178.52,13.91784392]
[1747213819331,19.60235228,178.55,178.49,26.0]
[1747213819533,19.60235228,178.55,178.53,13.91784392]
[1747213819736,5.59910414,178.6,178.54,13.91784392]
[1747213819954,5.59910414,178.6,178.58,13.91784392]
[1747213819955,19.59686449,178.6,178.58,13.91784392]
[1747213820329,5.59910414,178.6,178.59,13.91784392]
[1747213820526,13.99567918,178.63,178.59,13.91784392]
[1747213820852,32.8,178.65,178.56,39.91784392]
[1747213820853,5.59785042,178.64,178.62,13.91784392]
[1747213821542,5.59785042,178.64,178.63,13.91784392]
[1747213822457,19.59247648,178.64,178.62,13.91784392]
[1747213822748,19.59247648,178.64,178.63,13.91784392]
[1747213822749,5.59785042,178.64,178.63,13.91784392]
[1747213824050,19.59247648,178.64,178.61,13.91784392]
[1747213824554,19.59247648,178.64,178.59,13.91784392]
[1747213824555,33.5103204,178.64,178.59,13.91784392]
[1747213825152,13.91784392,178.63,178.58,13.91784392]
[1747213825651,13.91784392,178.63,178.54,34.28476157]
[1747213825652,13.91784392,178.61,178.54,8.1426]
[1747213825832,13.91784392,178.6,178.55,13.91784392]
[1747213826039,13.91784392,178.61,178.56,13.91784392]
[1747213826856,13.91784392,178.61,178.57,13.91784392]
[1747213827532,5.59910414,178.6,178.57,13.91784392]
[1747213828355,19.59686449,178.6,178.56,13.91784392]
[1747213829559,5.6000448,178.57,178.54,15.42414392]
[1747213829959,33.51800072,178.57,178.5,0.14216157]
[1747213830126,33.51800072,178.57,178.52,13.91784392]
[1747213830331,33.51800072,178.57,178.49,6.5056]
[1747213830332,13.91784392,178.56,178.49,6.5056]
[1747213830561,13.91784392,178.56,178.51,13.91784392]
[1747213830748,33.51800072,178.57,178.52,13.91784392]
[1747213831066,19.6001568,178.57,178.55,13.91784392]
[1747213831651,14.000112,178.57,178.54,13.91784392]
[1747213832447,5.59973121,178.58,178.56,13.91784392]
[1747213832746,5.59973121,178.58,178.57,13.91784392]
[1747213833365,19.59905924,178.58,178.55,13.91784392]
[1747213833562,19.59905924,178.58,178.52,26.28432314]
[1747213833771,13.99932803,178.58,178.56,13.91784392]
[1747213833977,13.99932803,178.58,178.55,13.91784392]
[1747213834465,13.99932803,178.58,178.52,26.28432314]
[1747213834466,13.99932803,178.58,178.56,13.91784392]
[1747213834766,13.99932803,178.58,178.55,13.91784392]
[1747213834974,13.99932803,178.58,178.56,13.91784392]
[1747213835270,13.99932803,178.58,178.57,13.91784392]
[1747213836175,13.99932803,178.58,178.52,26.0]
[1747213836383,13.99932803,178.58,178.55,13.91784392]
[1747213836585,13.99932803,178.58,178.52,26.0]
[1747213836762,13.99932803,178.58,178.56,13.91784392]
[1747213837072,13.99932803,178.58,178.54,13.91784392]
[1747213837951,13.91784392,178.57,178.5,26.0]
[1747213838166,13.91784392,178.56,178.51,13.91784392]
[1747213838479,47.5977153,178.58,178.52,13.91784392]
[1747213838649,33.51690316,178.58,178.53,13.91784392]
[1747213838979,13.91784392,178.54,178.43,1.6121]
[1747213839155,13.91784392,178.54,178.45,13.91784392]
[1747213839156,13.91784392,178.5,178.45,13.91784392]
[1747213839355,32.8,178.54,178.45,13.91784392]
[1747213839572,13.91784392,178.52,178.47,13.91784392]
[1747213839979,19.60454825,178.53,178.47,0.28432314]
[1747213840164,19.60454825,178.53,178.45,14.06000549]
[1747213840355,19.60454825,178.53,178.45,13.91784392]
[1747213840356,13.91784392,178.5,178.45,13.91784392]
[1747213841072,13.91784392,178.5,178.43,27.6121]
[1747213841265,13.91784392,178.5,178.45,13.91784392]
[1747213841477,13.91784392,178.51,178.46,13.91784392]
[1747213841656,47.61104575,178.53,178.43,27.6121]
[1747213841657,19.60454825,178.53,178.49,13.91784392]
[1747213841982,19.60454825,178.53,178.5,13.91784392]
[1747213842187,19.60454825,178.53,178.51,13.91784392]
[1747213842188,5.6012995,178.53,178.51,13.91784392]
[1747213842489,32.8,178.54,178.52,13.91784392]
[1747213842490,38.40106066,178.54,178.52,13.91784392]
[1747213842863,38.40106066,178.54,178.53,13.91784392]
[1747213843060,52.40352509,178.54,178.47,13.91784392]
[1747213843369,52.40352509,178.54,178.51,13.91784392]
[1747213843559,52.40352509,178.54,178.48,0.28432314]
[1747213843560,38.40106066,178.54,178.52,13.91784392]
[1747213844189,38.40106066,178.54,178.53,13.91784392]
[1747213844574,38.40106066,178.54,178.51,13.91784392]
[1747213844764,38.40106066,178.54,178.52,13.91784392]
[1747213844959,38.40106066,178.54,178.52,63.91784392]
[1747213845165,38.40106066,178.54,178.52,50.0]
[1747213845668,52.31890458,178.54,178.52,50.0]
[1747213847258,38.40106066,178.54,178.52,50.0]
[1747213847567,5.60106066,178.54,178.52,50.0]
[1747213847884,5.60106066,178.54,178.52,63.91784392]
[1747213848086,5.60106066,178.54,178.52,50.0]
[1747213848385,19.60125447,178.56,178.52,50.0]
[1747213848778,19.60125447,178.56,178.52,63.91784392]
[1747213848957,19.60125447,178.56,178.53,13.91784392]
[1747213849372,5.60035842,178.56,178.53,13.91784392]
[1747213849590,223.67885122,178.59,178.52,50.0]
[1747213849591,5.60004206,178.58,178.55,13.91784392]
[1747213849894,5.60004206,178.58,178.57,13.91784392]
[1747213850590,5.59910414,178.6,178.57,13.91784392]
[1747213851188,5.59910414,178.6,178.58,13.91784392]
[1747213851380,5.59910414,178.6,178.59,13.91784392]
[1747213852088,5.59785042,178.64,178.59,14.20216706]
[1747213852269,5.59785042,178.64,178.61,13.91784392]
[1747213852473,5.59785042,178.64,178.62,13.91784392]
[1747213852671,27.91218641,178.65,178.6,13.91784392]
[1747213853380,13.91784392,178.64,178.59,14.20216706]
[1747213854690,19.59467024,178.62,178.56,0.28432314]
[1747213854888,19.59467024,178.62,178.58,13.91784392]
[1747213855393,19.59467024,178.62,178.56,0.28432314]
[1747213855693,13.91784392,178.59,178.55,26.0]
[1747213855882,47.58705631,178.62,178.55,26.0]
[1747213855883,19.59467024,178.62,178.56,13.91784392]
[1747213856079,19.59467024,178.62,178.58,13.91784392]
[1747213856598,19.59467024,178.62,178.59,13.91784392]
[1747213856764,5.5981638,178.63,178.59,13.91784392]
[1747213856968,5.5981638,178.63,178.6,13.91784392]
[1747213857191,19.5935733,178.63,178.6,13.91784392]
[1747213857990,19.5935733,178.63,178.61,13.91784392]
[1747213858375,19.5935733,178.63,178.6,13.91784392]
[1747213858769,19.5935733,178.63,178.58,0.14216157]
[1747213858770,13.9954095,178.63,178.61,13.91784392]
[1747213858970,5.59785042,178.64,178.61,13.91784392]
[1747213859173,5.59785042,178.64,178.62,13.91784392]
[1747213859673,5.59785042,178.64,178.6,0.28432314]
[1747213859997,5.59785042,178.64,178.63,13.91784392]
[1747213860701,19.58940097,178.67,178.63,13.91784392]
[1747213860870,19.58940097,178.67,178.64,13.91784392]
[1747213861070,19.58940097,178.67,178.62,1.5551]
[1747213861269,19.58940097,178.67,178.64,13.91784392]
[1747213861677,33.50724489,178.67,178.62,13.91784392]
[1747213861987,13.91784392,178.66,178.61,13.91784392]
[1747213862183,13.91784392,178.66,178.62,13.91784392]
[1747213862385,19.58940097,178.67,178.64,13.91784392]
[1747213862579,5.5969105,178.67,178.66,13.91784392]
[1747213862785,5.59628406,178.69,178.66,13.91784392]
[1747213863009,5.59628406,178.69,178.68,13.91784392]
[1747213863895,19.58699422,178.69,178.66,13.91784392]
[1747213864202,19.58699422,178.69,178.64,26.0]
[1747213864380,19.58699422,178.69,178.66,13.91784392]
[1747213864580,19.58699422,178.69,178.67,13.91784392]
[1747213864783,5.59628406,178.69,178.68,13.91784392]
[1747213865005,5.59534467,178.72,178.68,13.91784392]
[1747213865307,5.59534467,178.72,178.69,13.91784392]
[1747213866102,19.58370635,178.72,178.69,13.91784392]
[1747213866680,5.59534467,178.72,178.7,13.91784392]
[1747213866891,19.57384933,178.81,178.71,14.06000549]
[1747213867080,13.91784392,178.78,178.73,13.91784392]
[1747213867282,32.4,178.8,178.73,13.91784392]
[1747213867578,32.4,178.8,178.74,13.91784392]
[1747213868400,13.91784392,178.78,178.72,14.06000549]
[1747213868805,33.49716814,178.76,178.7,6.4589]
[1747213869005,19.57932422,178.76,178.69,14.20216706]
[1747213869333,13.91784392,178.74,178.69,14.20216706]
[1747213869513,13.91784392,178.75,178.7,13.91784392]
[1747213869803,19.57932422,178.76,178.71,13.91784392]
[1747213870007,19.57932422,178.76,178.72,13.91784392]
[1747213870898,19.57932422,178.76,178.74,13.91784392]
[1747213871107,5.59409263,178.76,178.74,13.91784392]
[1747213871494,5.59409263,178.76,178.69,0.28432314]
[1747213871798,5.59409263,178.76,178.72,13.91784392]
[1747213872007,19.57932422,178.76,178.72,13.91784392]
[1747213872305,19.57932422,178.76,178.73,13.91784392]
[1747213872904,19.57603891,178.79,178.73,13.91784392]
[1747213873081,13.91784392,178.78,178.73,13.91784392]
[1747213873814,13.91784392,178.77,178.69,0.28432314]
[1747213874123,19.57603891,178.79,178.72,13.91784392]
[1747213874285,33.49388283,178.79,178.74,13.91784392]
[1747213874486,33.49388283,178.79,178.75,13.91784392]
[1747213874487,19.57603891,178.79,178.75,13.91784392]
[1747213874830,19.57603891,178.79,178.76,13.91784392]
[1747213875415,19.57603891,178.79,178.75,13.91784392]
[1747213875585,19.57603891,178.79,178.76,13.91784392]
[1747213875783,19.57603891,178.79,178.75,13.91784392]
[1747213876301,19.57603891,178.79,178.72,26.28432314]
[1747213876508,19.57603891,178.79,178.75,13.91784392]
[1747213876711,13.91784392,178.76,178.67,1.6431]
[1747213877013,5.59471858,178.74,178.7,13.91784392]
[1747213877222,19.5125625,178.74,178.69,39.91784392]
[1747213877392,33.49935896,178.74,178.69,39.91784392]
[1747213877995,33.49935896,178.74,178.69,26.0]
[1747213878192,33.49935896,178.74,178.69,39.91784392]
[1747213878509,13.91784392,178.71,178.67,1.6431]
[1747213878928,13.91784392,178.7,178.67,1.6431]
[1747213879086,5.59628406,178.69,178.67,1.6431]
[1747213879286,5.59628406,178.69,178.65,13.91784392]
[1747213879496,33.50483814,178.69,178.64,13.91784392]
[1747213880086,13.91784392,178.68,178.63,15.53454392]
[1747213880408,13.91784392,178.65,178.6,13.91784392]
[1747213880619,13.91784392,178.66,178.61,13.91784392]
[1747213880807,13.91784392,178.67,178.63,0.14216157]
[1747213881011,13.91784392,178.67,178.62,13.91784392]
[1747213881319,5.59722377,178.66,178.63,13.91784392]
[1747213882422,5.59722377,178.66,178.62,13.91784392]
[1747213882623,19.51506769,178.66,178.61,26.28432314]
[1747213882923,19.59028321,178.66,178.62,13.91784392]
[1747213883598,19.59028321,178.66,178.61,26.0]
[1747213883819,13.91784392,178.63,178.58,1.511]
[1747213884023,13.91784392,178.63,178.59,0.28432314]
[1747213884630,19.59028321,178.66,178.59,18.69892944]
[1747213884935,13.91784392,178.65,178.6,13.91784392]
[1747213885106,5.59785042,178.64,178.6,13.91784392]
[1747213886128,5.59785042,178.64,178.59,0.28432314]
[1747213886129,19.51569434,178.64,178.59,14.20216706]
[1747213886636,4.08680374,178.63,178.59,14.20216706]
[1747213886818,4.08680374,178.63,178.61,13.91784392]
[1747213887011,4.08680374,178.63,178.62,39.91784392]
[1747213887419,4.08680374,178.63,178.62,26.0]
[1747213887709,5.59786465,178.64,178.62,26.0]
[1747213888104,19.51570857,178.64,178.62,26.0]
[1747213888330,5.59786465,178.64,178.62,26.0]
[1747213889609,19.51570857,178.64,178.62,26.0]
[1747213889812,4.08074631,178.63,178.59,0.14216157]
[1747213890012,4.08074631,178.63,178.61,0.14216157]
[1747213890308,4.08074631,178.63,178.61,0.28432314]
[1747213890934,4.08074631,178.63,178.61,14.20216706]
[1747213891106,4.08074631,178.63,178.61,0.28432314]
[1747213891307,5.59847721,178.62,178.6,26.0]
[1747213891926,5.59788679,178.64,178.61,0.14216157]
[1747213892102,5.59763642,178.65,178.62,26.0]
[1747213892602,4.07978144,178.64,178.62,26.0]
[1747213892826,4.07978144,178.64,178.61,14.20216706]
[1747213893150,4.07978144,178.64,178.63,26.28432314]
[1747213893706,9.67763186,178.64,178.63,26.0]
[1747213893922,9.67763186,178.64,178.55,31.74]
[1747213893923,26.0,178.61,178.52,50.0]
[1747213894120,13.91784392,178.55,178.52,50.0]
[1747213895237,26.0,178.59,178.52,50.0]
[1747213895442,19.59905924,178.58,178.52,50.0]
[1747213895638,13.91784392,178.53,178.52,50.0]
[1747213896137,19.59905924,178.58,178.52,50.0]
[1747213896329,13.91784392,178.53,178.52,50.0]
[1747213896525,3.99341496,178.57,178.52,50.0]
[1747213896747,13.91784392,178.55,178.52,50.0]
[1747213897127,13.91784392,178.54,178.52,50.0]
[1747213897338,19.51914342,178.53,178.52,50.0]
[1747213897919,5.6012995,178.53,178.52,50.0]
[1747213898148,19.51914342,178.53,178.52,50.0]
[1747213899533,5.6012995,178.53,178.52,50.0]
[1747213901736,14.00156147,178.56,178.52,50.0]
[1747213901939,5.59973121,178.58,178.52,50.0]
[1747213902113,13.91784392,178.56,178.52,50.0]
[1747213902837,19.59905924,178.58,178.52,50.0]
[1747213903138,5.60067208,178.55,178.52,50.0]
[1747213903621,19.518516,178.55,178.52,50.0]
[1747213904138,5.60067208,178.55,178.52,50.0]
[1747213905638,13.91784392,178.53,178.52,50.0]
[1747213906012,39.91784392,178.53,178.52,50.0]
[1747213906216,39.91784392,178.53,178.41,6.5251]
[1747213906217,46.30514392,178.53,178.41,6.5251]
[1747213906431,13.91784392,178.44,178.41,6.5251]
[1747213906642,13.91784392,178.42,178.39,1.6425]
[1747213906941,13.91784392,178.41,178.39,1.6425]
[1747213907119,13.91784392,178.42,178.39,1.6425]
[1747213907323,5.60506698,178.41,178.39,1.6425]
[1747213908033,13.91784392,178.44,178.39,15.56034392]
[1747213908242,13.91784392,178.43,178.39,1.6425]
[1747213908415,13.91784392,178.44,178.39,15.56034392]
[1747213909011,19.61223803,178.46,178.4,14.06000549]
[1747213909242,5.60412463,178.44,178.41,0.14216157]
[1747213909844,13.91784392,178.47,178.43,0.14216157]
[1747213910134,19.52102652,178.47,178.42,14.06000549]
[1747213910334,13.91784392,178.46,178.42,0.14216157]
[1747213910511,19.52102652,178.47,178.42,14.06000549]
[1747213910719,13.91784392,178.46,178.42,0.14216157]
[1747213911118,5.6031826,178.47,178.42,0.14216157]
[1747213911319,5.60381059,178.45,178.42,0.14216157]
[1747213911821,13.91784392,178.43,178.39,1.6425]
[1747213912429,13.91784392,178.42,178.39,1.6425]
[1747213912759,13.91784392,178.43,178.39,1.6425]
[1747213912930,19.52165451,178.45,178.4,14.06000549]
[1747213913255,5.60381059,178.45,178.41,13.91784392]
[1747213913618,5.60381059,178.45,178.42,13.91784392]
[1747213914233,5.60343875,178.47,178.43,13.91784392]
[1747213914915,5.60343875,178.47,178.41,0.14216157]
[1747213915138,5.60343875,178.47,178.43,13.91784392]
[1747213916040,5.60343875,178.47,178.42,0.28432314]
[1747213916041,13.91784392,178.46,178.42,0.28432314]
[1747213916448,5.60343875,178.47,178.43,13.91784392]
[1747213916825,5.60343875,178.47,178.44,13.91784392]
[1747213917038,5.60343875,178.47,178.42,0.28432314]
[1747213917235,5.60343875,178.47,178.44,13.91784392]
[1747213917440,37.18294795,178.48,178.45,13.91784392]
[1747213917626,33.52264795,178.53,178.47,13.91784392]
[1747213917826,13.91784392,178.51,178.47,0.14216157]
[1747213918436,13.91784392,178.52,178.47,14.06000549]
[1747213918648,19.60480403,178.53,178.47,14.06000549]
[1747213918845,13.91784392,178.52,178.47,14.06000549]
[1747213919234,19.60480403,178.53,178.48,13.91784392]
[1747213919433,33.52264795,178.53,178.48,13.91784392]
[1747213919646,13.91784392,178.52,178.47,14.06000549]
[1747213920043,19.60480403,178.53,178.45,6.4275]
[1747213920044,13.91784392,178.5,178.45,6.4275]
[1747213920535,13.91784392,178.49,178.45,6.4275]
[1747213920857,13.91784392,178.47,178.42,13.91784392]